fUSD/lending_fUSD_20260108
["ID","MTS","AMOUNT","RATE_DAILY","PERIOD"]
[400852828,1767845439579,-500.0,0.0001544,2]
[400852830,1767845439587,-500.0,0.0001544,2]
[400852832,1767845439597,-500.0,0.0001544,2]
[400852834,1767845439606,-500.0,0.0001544,2]
[400852836,1767845439615,-474.50188788,0.0001544,2]
[400852838,1767845439625,-166.66,0.00015445,2]
[400852840,1767845439635,-3419.62223733,0.00015453,2]
[400852842,1767845439644,-151.0,0.00015579,2]
[400852844,1767845439653,-151.0,0.00015579,2]
[400852846,1767845439662,-151.0,0.00015579,2]
[400852848,1767845439671,-300.0,0.0001565,2]
[400852850,1767845439680,-300.0,0.00015665,2]
[400852852,1767845439689,-300.0,0.00015708,2]
[400852854,1767845439698,-300.0,0.00015751,2]
[400852856,1767845439707,-300.0,0.00015752,2]
[400852858,1767845439721,-1000.0,0.00015784,2]
[400852860,1767845439731,-300.0,0.00015791,2]
[400852862,1767845439739,-2500.0,0.000158,2]
[400852864,1767845439748,-300.0,0.00015804,2]
[400852866,1767845439758,-300.0,0.00015816,2]
[400852868,1767845439767,-300.0,0.00015827,2]
[400852870,1767845439776,-300.0,0.00015835,2]
[400852872,1767845439787,-978.83,0.0001584,2]
[400852874,1767845439795,-300.0,0.00015851,2]
[400852876,1767845439805,-1000.0,0.00015851,2]
[400852878,1767845439813,-1508.63308647,0.00015858,2]
[400852880,1767845439823,-1500.0,0.00015858,2]
[400852882,1767845439832,-1500.0,0.00015858,2]
[400852884,1767845439841,-1500.0,0.00015858,2]
[400852885,1767845439850,-886.34872655,0.000159,2]
[400852888,1767845439859,-886.34872655,0.000159,2]
[400852890,1767845439868,-886.34872655,0.000159,2]
[400852891,1767845439878,-886.34872655,0.000159,2]
[400852893,1767845439887,-300.0,0.00015904,2]
[400852895,1767845439896,-166.66,0.00015924,2]
[400852897,1767845439905,-3419.62223733,0.00015943,2]
[400852899,1767845439914,-300.0,0.00015956,2]
[400852901,1767845439923,-595.37131296,0.00015988,2]
[400852904,1767845439934,-433.0,0.00015998,2]
[400852905,1767845439943,-300.0,0.00016006,2]
[400852907,1767845439952,-300.0,0.00016018,2]
[400852909,1767845439961,-300.0,0.00016052,2]
[400852911,1767845439970,-300.0,0.00016052,2]
[400852913,1767845439979,-300.0,0.00016054,2]
[400852915,1767845439988,-300.0,0.00016062,2]
[400852917,1767845439997,-300.0,0.00016075,2]
[400852919,1767845440006,-300.0,0.00016109,2]
[400852921,1767845440015,-9252.33,0.00016116,2]
[400852923,1767845440025,-300.0,0.00016126,2]
[400852925,1767845440034,-1000.0,0.0001613,2]
[400852927,1767845440043,-300.0,0.00016139,2]
[400852930,1767845440052,-300.0,0.00016143,2]
[400852931,1767845440061,-300.0,0.00016178,2]
[400852933,1767845440071,-300.0,0.00016189,2]
[400852935,1767845440079,-1000.0,0.00016198,2]
[400852937,1767845440088,-150.0,0.000162,2]
[400852939,1767845440098,-300.0,0.00016208,2]
[400852941,1767845440106,-1000.0,0.00016229,2]
[400852942,1767845440115,-300.0,0.00016249,2]
[400852944,1767845440125,-300.0,0.00016277,2]
[400852946,1767845440134,-587.0,0.00016292,2]
[400852948,1767845440143,-587.0,0.00016292,2]
[400852950,1767845440152,-472.14,0.00016293,2]
[400852952,1767845440160,-500.0,0.00016301,2]
[400852954,1767845440170,-12660.66,0.00016324,2]
[400852956,1767845440179,-1067.0,0.00016328,2]
[400852958,1767845440188,-150.0,0.00016328,2]
[400852960,1767845440197,-150.0,0.00016328,2]
[400852961,1767845440206,-150.0,0.00016328,2]
[400852963,1767845440215,-150.0,0.00016328,2]
[400852965,1767845440225,-211.06758368,0.00016328,2]
[400852967,1767845440234,-150.0,0.00016328,2]
[400852969,1767845440243,-500.0,0.00016328,2]
[400852971,1767845440252,-150.0,0.00016328,2]
[400852973,1767845440260,-150.0,0.00016328,2]
[400852975,1767845440269,-150.0,0.00016328,2]
[400852977,1767845440278,-150.0,0.00016328,2]
[400852979,1767845440287,-500.0,0.00016328,2]
[400852981,1767845440296,-500.0,0.00016328,2]
[400852983,1767845440305,-150.0,0.00016328,2]
[400852985,1767845440314,-150.0,0.00016328,2]
[400852987,1767845440323,-500.0,0.00016328,2]
[400852989,1767845440332,-150.0,0.00016328,2]
[400852991,1767845440340,-150.0,0.00016328,2]
[400852993,1767845440350,-150.0,0.00016328,2]
[400852995,1767845440359,-150.0,0.00016328,2]
[400852997,1767845440368,-150.0,0.00016328,2]
[400852998,1767845440377,-150.0,0.00016328,2]
[400853001,1767845440387,-150.0,0.00016328,2]
[400853002,1767845440396,-150.0,0.00016328,2]
[400853004,1767845440405,-500.0,0.00016328,2]
[400853006,1767845440414,-500.0,0.00016328,2]
[400853008,1767845440425,-150.6048441,0.00016328,2]
[400853010,1767845440434,-150.0,0.00016328,2]
[400853013,1767845440444,-150.0,0.00016328,2]
[400853014,1767845440453,-150.0,0.00016328,2]
[400853016,1767845440464,-150.0,0.00016328,2]
[400853018,1767845440473,-150.0,0.00016328,2]
[400853020,1767845440483,-150.0,0.00016328,2]
[400853022,1767845440492,-150.0,0.00016328,2]
[400853024,1767845440501,-150.0,0.00016328,2]
[400853026,1767845440510,-150.0,0.00016328,2]
[400853028,1767845440519,-1000.0,0.00016337,2]
[400853030,1767845440528,-173.21738185,0.00016338,2]
[400853032,1767845440538,-173.21738185,0.00016338,2]
[400853034,1767845440547,-300.0,0.00016348,2]
[400853036,1767845440556,-172.0,0.00016363,2]
[400853038,1767845440565,-150.0,0.00016364,2]
[400853040,1767845440575,-300.0,0.00016367,2]
[400853042,1767845440584,-300.0,0.00016369,2]
[400853044,1767845440593,-1000.0,0.00016379,2]
[400853046,1767845440602,-1067.0,0.00016383,2]
[400853048,1767845440611,-150.0,0.00016383,2]
[400853050,1767845440620,-150.0,0.00016383,2]
[400853052,1767845440630,-150.0,0.00016383,2]
[400853054,1767845440638,-150.0,0.00016383,2]
[400853056,1767845440647,-500.0,0.00016383,2]
[400853058,1767845440656,-164.77040348,0.00016383,2]
[400853060,1767845440665,-150.0,0.00016383,2]
[400853061,1767845440676,-233.66248833,0.00016383,2]
[400853063,1767845440685,-500.0,0.00016383,2]
[400853065,1767845440694,-500.0,0.00016383,2]
[400853067,1767845440703,-150.0,0.00016383,2]
[400853069,1767845440716,-500.0,0.00016383,2]
[400853071,1767845440726,-150.0,0.00016383,2]
[400853073,1767845440735,-150.0,0.00016383,2]
[400853075,1767845440743,-150.0,0.00016383,2]
[400853077,1767845440752,-150.0,0.00016383,2]
[400853079,1767845440762,-150.0,0.00016383,2]
[400853081,1767845440771,-150.0,0.00016383,2]
[400853083,1767845440780,-150.0,0.00016383,2]
[400853085,1767845440790,-500.0,0.00016383,2]
[400853087,1767845440799,-500.0,0.00016383,2]
[400853089,1767845440807,-150.0,0.00016383,2]
[400853091,1767845440816,-150.0,0.00016383,2]
[400853093,1767845440826,-150.0,0.00016383,2]
[400853095,1767845440835,-200.0,0.00016383,2]
[400853097,1767845440845,-150.0,0.00016383,2]
[400853099,1767845440854,-150.0,0.00016383,2]
[400853101,1767845440862,-150.0,0.00016383,2]
[400853103,1767845440871,-2351.0,0.00016383,2]
[400853105,1767845440880,-300.0,0.00016394,2]
[400853107,1767845440891,-162.0,0.000164,2]
[400853109,1767845440900,-833.0,0.000164,2]
[400853111,1767845440909,-162.0,0.000164,2]
[400853113,1767845440918,-166.66,0.00016402,2]
[400853115,1767845440927,-300.0,0.00016404,2]
[400853117,1767845440936,-665.71915277,0.00016406,2]
[400853119,1767845440946,-2000.0,0.00016406,2]
[400853121,1767845440955,-2000.0,0.00016406,2]
[400853123,1767845440964,-1000.0,0.00016411,2]
[400853125,1767845440973,-1067.0,0.00016438,2]
[400853127,1767845440982,-200.0,0.00016438,2]
[400853129,1767845440991,-150.0,0.00016438,2]
[400853131,1767845440999,-157.0,0.00016438,2]
[400853133,1767845441008,-211.64498178,0.00016438,2]
[400853135,1767845441017,-500.0,0.00016438,2]
[400853136,1767845441026,-200.0,0.00016438,2]
[400853138,1767845441036,-500.0,0.00016438,2]
[400853141,1767845441045,-500.0,0.00016438,2]
[400853143,1767845441054,-150.0,0.00016438,2]
[400853145,1767845441064,-500.0,0.00016438,2]
[400853146,1767845441073,-200.0,0.00016438,2]
[400853148,1767845441082,-150.36552725,0.00016438,2]
[400853150,1767845441092,-200.0,0.00016438,2]
[400853152,1767845441103,-150.0,0.00016438,2]
[400853154,1767845441113,-150.0,0.00016438,2]
[400853156,1767845441122,-150.0,0.00016438,2]
[400853158,1767845441132,-217.19962447,0.00016438,2]
[400853160,1767845441141,-500.88287597,0.00016438,2]
[400853162,1767845441150,-580.07664263,0.00016438,2]
[400853164,1767845441160,-150.0,0.00016438,2]
[400853166,1767845441168,-150.0,0.00016438,2]
[400853168,1767845441178,-200.0,0.00016438,2]
[400853170,1767845441187,-150.0,0.00016438,2]
[400853172,1767845441196,-201.0,0.00016438,2]
[400853174,1767845441205,-200.0,0.00016438,2]
[400853176,1767845441214,-500.0,0.00016438,2]
[400853178,1767845441223,-500.0,0.00016438,2]
[400853180,1767845441232,-500.0,0.00016438,2]
[400853182,1767845441242,-500.0,0.00016438,2]
[400853184,1767845441251,-500.0,0.00016438,2]
[400853186,1767845441260,-500.0,0.00016438,2]
[400853188,1767845441269,-500.0,0.00016438,2]
[400853190,1767845441278,-500.0,0.00016438,2]
[400853192,1767845441287,-500.0,0.00016438,2]
[400853194,1767845441296,-500.0,0.00016438,2]
[400853196,1767845441305,-500.0,0.00016438,2]
[400853198,1767845441315,-500.0,0.00016438,2]
[400853200,1767845441324,-500.0,0.00016438,2]
[400853202,1767845441333,-500.0,0.00016438,2]
[400853204,1767845441342,-500.0,0.00016438,2]
[400853206,1767845441351,-500.0,0.00016438,2]
[400853208,1767845441360,-500.0,0.00016438,2]
[400853210,1767845441369,-621.42930389,0.00016438,2]
[400853212,1767845441378,-500.0,0.00016438,2]
[400853214,1767845441387,-500.0,0.00016438,2]
[400853216,1767845441396,-500.0,0.00016438,2]
[400853218,1767845441406,-500.0,0.00016438,2]
[400853220,1767845441415,-500.0,0.00016438,2]
[400853222,1767845441424,-500.0,0.00016438,2]
[400853223,1767845441433,-500.0,0.00016438,2]
[400853226,1767845441443,-500.0,0.00016438,2]
[400853227,1767845441452,-500.0,0.00016438,2]
[400853229,1767845441462,-500.0,0.00016438,2]
[400853231,1767845441472,-500.0,0.00016438,2]
[400853233,1767845441482,-500.0,0.00016438,2]
[400853235,1767845441491,-500.0,0.00016438,2]
[400853237,1767845441500,-500.0,0.00016438,2]
[400853240,1767845441510,-500.0,0.00016438,2]
[400853242,1767845441521,-500.0,0.00016438,2]
[400853243,1767845441531,-241.73307518,0.00016438,2]
[400853245,1767845441540,-165.01761726,0.00016466,2]
[400853247,1767845441550,-1852.42,0.00016481,2]
[400853250,1767845441560,-300.0,0.00016488,2]
[400853251,1767845441573,-1067.0,0.00016492,2]
[400853254,1767845441583,-152.0,0.00016492,2]
[400853256,1767845441593,-500.0,0.00016492,2]
[400853258,1767845441603,-355.38896935,0.00016492,2]
[400853260,1767845441617,-500.0,0.00016492,2]
[400853262,1767845441634,-274.51861347,0.00016492,2]
[400853264,1767845441644,-283.00639251,0.00016492,2]
[400853266,1767845441653,-180.41152158,0.00016492,2]
[400853268,1767845441662,-150.67349054,0.00016492,2]
[400853270,1767845441671,-152.76998294,0.00016492,2]
[400853272,1767845441680,-150.0,0.00016492,2]
[400853274,1767845441689,-150.0,0.00016492,2]
[400853276,1767845441698,-150.0,0.00016492,2]
[400853278,1767845441707,-300.0,0.00016523,2]
[400853280,1767845441720,-150.0,0.00016527,2]
[400853282,1767845441729,-617.40005154,0.00016536,2]
[400853283,1767845441738,-300.0,0.00016541,2]
[400853286,1767845441748,-157.19112422,0.00016547,2]
[400853287,1767845441759,-1067.0,0.00016547,2]
[400853290,1767845441769,-231.23799714,0.00016547,2]
[400853292,1767845441779,-199.62704522,0.00016547,2]
[400853294,1767845441791,-244.59805743,0.00016547,2]
[400853296,1767845441799,-150.0,0.00016547,2]
[400853297,1767845441809,-250.0,0.00016547,2]
[400853299,1767845441819,-481.35131074,0.00016574,2]
[400853301,1767845441828,-300.0,0.00016586,2]
[400853303,1767845441837,-300.0,0.00016592,2]
[400853306,1767845441847,-1067.0,0.00016602,2]
[400853308,1767845441856,-250.0,0.00016602,2]
[400853310,1767845441865,-300.0,0.00016603,2]
[400853312,1767845441875,-206.37,0.00016615,2]
[400853314,1767845441884,-1000.0,0.00016618,2]
[400853315,1767845441893,-300.0,0.0001665,2]
[400853317,1767845441903,-173.21738185,0.0001665,2]
[400853319,1767845441911,-173.21738185,0.0001665,2]
[400853321,1767845441921,-300.0,0.00016652,2]
[400853323,1767845441930,-1067.0,0.00016657,2]
[400853326,1767845441940,-300.0,0.00016662,2]
[400853327,1767845441950,-300.0,0.0001669,2]
[400853329,1767845441960,-150.0,0.00016691,2]
[400853331,1767845441972,-1067.0,0.00016712,2]
[400853333,1767845441981,-165.16,0.00016712,2]
[400853335,1767845441990,-162.0,0.0001672,2]
[400853337,1767845442000,-833.0,0.0001672,2]
[400853339,1767845442009,-1000.0,0.0001672,2]
[400853341,1767845442018,-1000.0,0.00016728,2]
[400853343,1767845442027,-300.0,0.00016746,2]
[400853345,1767845442036,-300.0,0.00016751,2]
[400853347,1767845442046,-300.0,0.00016752,2]
[400853349,1767845442055,-300.0,0.00016762,2]
[400853351,1767845442065,-2997.98680392,0.00016762,2]
[400853353,1767845442074,-1067.0,0.00016766,2]
[400853355,1767845442083,-300.0,0.00016791,2]
[400853357,1767845442093,-642.94,0.00016809,2]
[400853359,1767845442102,-300.0,0.00016821,2]
[400853362,1767845442111,-1067.0,0.00016821,2]
[400853363,1767845442120,-300.0,0.00016825,2]
[400853366,1767845442132,-1000.0,0.00016831,2]
[400853368,1767845442140,-1000.0,0.00016842,2]
[400853370,1767845442153,-212.37385639,0.0001685,2]
[400853372,1767845442163,-150.0,0.00016855,2]
[400853374,1767845442172,-1067.0,0.00016876,2]
[400853376,1767845442182,-166.66,0.0001688,2]
[400853378,1767845442190,-1000.0,0.00016899,2]
[400853380,1767845442200,-1067.0,0.00016931,2]
[400853382,1767845442210,-1000.0,0.00016934,2]
[400853384,1767845442220,-300.0,0.00016947,2]
[400853386,1767845442230,-300.0,0.00016954,2]
[400853388,1767845442240,-2500.0,0.00016954,2]
[400853390,1767845442249,-1964.35925581,0.00016954,2]
[400853392,1767845442259,-173.21738185,0.00016963,2]
[400853394,1767845442268,-173.21738185,0.00016963,2]
[400853396,1767845442278,-300.0,0.00016964,2]
[400853398,1767845442287,-984.08,0.00016966,2]
[400853400,1767845442296,-300.0,0.00016974,2]
[400853402,1767845442306,-1067.0,0.00016986,2]
[400853403,1767845442315,-150.0,0.00017018,2]
[400853405,1767845442325,-300.0,0.00017021,2]
[400853407,1767845442334,-833.0,0.0001704,2]
[400853409,1767845442345,-162.0,0.0001704,2]
[400853411,1767845442354,-162.0,0.0001704,2]
[400853423,1767845442605,-1067.0,0.0001704,2]
[400853424,1767845442615,-1000.0,0.00017045,2]
[400853426,1767845442626,-2997.98680392,0.00017047,2]
[400853428,1767845442635,-1000.0,0.00017055,2]
[400853431,1767845442648,-1000.0,0.00017057,2]
[400853433,1767845442658,-300.0,0.00017083,2]
[400853435,1767845442667,-640.24385345,0.00017084,2]
[400853437,1767845442676,-206.37,0.0001709,2]
[400853439,1767845442686,-300.0,0.00017095,2]
[400853441,1767845442695,-1067.0,0.00017095,2]
[400853443,1767845442705,-300.0,0.00017104,2]
[400853445,1767845442719,-1000.0,0.00017109,2]
[400853447,1767845442729,-1067.0,0.0001715,2]
[400853449,1767845442738,-1000.0,0.00017153,2]
[400853451,1767845442758,-300.0,0.00017171,2]
[400853453,1767845442774,-300.72,0.00017178,2]
[400853455,1767845442783,-150.0,0.00017182,2]
[400853457,1767845442793,-300.0,0.00017189,2]
[400853459,1767845442803,-1000.0,0.00017196,2]
[400853461,1767845442812,-1067.0,0.00017205,2]
[400853463,1767845442821,-300.0,0.00017206,2]
[400853465,1767845442830,-586.72827457,0.00017217,2]
[400853468,1767845442841,-3970.57155337,0.00017217,2]
[400853470,1767845442851,-1000.0,0.0001722,2]
[400853472,1767845442860,-157.19112422,0.00017236,2]
[400853474,1767845442869,-555.6,0.00017244,2]
[400853476,1767845442880,-300.0,0.0001725,2]
[400853478,1767845442889,-1067.0,0.0001726,2]
[400853480,1767845442898,-2061.0,0.0001726,2]
[400853482,1767845442907,-787.62614361,0.00017285,2]
[400853484,1767845442917,-736.0,0.0001731,2]
[400853486,1767845442926,-555.6,0.00017313,2]
[400853488,1767845442935,-1067.0,0.00017314,2]
[400853490,1767845442944,-300.0,0.00017315,2]
[400853492,1767845442954,-300.0,0.00017318,2]
[400853494,1767845442964,-300.0,0.00017321,2]
[400853496,1767845442975,-2997.98680392,0.00017331,2]
[400853498,1767845442986,-300.0,0.00017337,2]
[400853501,1767845442999,-500.0,0.0001734,2]
[400853503,1767845443010,-500.0,0.0001734,2]
[400853505,1767845443020,-150.0,0.00017345,2]
[400853507,1767845443029,-300.0,0.00017352,2]
[400853509,1767845443038,-1000.0,0.00017358,2]
[400853511,1767845443047,-162.0,0.0001736,2]
[400853513,1767845443057,-162.0,0.0001736,2]
[400853515,1767845443066,-300.0,0.00017361,2]
[400853517,1767845443076,-1067.0,0.00017369,2]
[400853519,1767845443085,-197.20922502,0.00017381,2]
[400853521,1767845443095,-555.6,0.00017381,2]
[400853523,1767845443104,-1000.0,0.000174,2]
[400853525,1767845443113,-150.0,0.00017404,2]
[400853527,1767845443122,-1000.0,0.00017422,2]
[400853529,1767845443132,-1067.0,0.00017424,2]
[400853531,1767845443142,-300.0,0.00017427,2]
[400853533,1767845443151,-300.0,0.00017431,2]
[400853535,1767845443161,-300.0,0.00017449,2]
[400853537,1767845443171,-555.6,0.0001745,2]
[400853539,1767845443180,-1000.0,0.00017462,2]
[400853541,1767845443190,-2061.0,0.00017463,2]
[400853543,1767845443199,-300.0,0.00017465,2]
[400853545,1767845443208,-300.0,0.00017472,2]
[400853547,1767845443217,-1067.0,0.00017479,2]
[400853549,1767845443226,-300.0,0.00017487,2]
[400853551,1767845443236,-2000.0,0.000175,2]
[400853553,1767845443245,-3000.0,0.00017502,2]
[400853555,1767845443254,-150.0,0.00017509,2]
[400853557,1767845443263,-1000.0,0.00017511,2]
[400853559,1767845443273,-555.6,0.00017519,2]
[400853561,1767845443282,-1067.0,0.00017533,2]
[400853563,1767845443291,-150.0,0.0001755,2]
[400853565,1767845443301,-1000.0,0.00017566,2]
[400853567,1767845443310,-2061.0,0.00017569,2]
[400853569,1767845443319,-2061.0,0.00017582,2]
[400853571,1767845443328,-555.6,0.00017588,2]
[400853573,1767845443338,-1074.41648618,0.00017588,2]
[400853575,1767845443347,-300.0,0.00017594,2]
[400853577,1767845443356,-300.0,0.00017597,2]
[400853579,1767845443366,-2061.0,0.00017598,2]
[400853581,1767845443376,-1000.0,0.000176,2]
[400853583,1767845443385,-171.97,0.00017606,2]
[400853585,1767845443394,-2997.98680392,0.00017616,2]
[400853587,1767845443404,-663.93287602,0.00017632,2]
[400853589,1767845443414,-150.0,0.00017633,2]
[400853591,1767845443423,-150.0,0.00017634,2]
[400853593,1767845443432,-300.0,0.00017638,2]
[400853595,1767845443442,-5888.0,0.0001764,2]
[400853597,1767845443451,-5309.74765664,0.0001764,2]
[400853599,1767845443460,-1000.0,0.0001764,2]
[400853601,1767845443471,-171.96423452,0.00017645,2]
[400853603,1767845443480,-150.0,0.00017651,2]
[400853605,1767845443489,-555.6,0.00017656,2]
[400853607,1767845443499,-300.0,0.00017657,2]
[400853609,1767845443509,-1000.0,0.00017661,2]
[400853611,1767845443518,-150.0,0.00017661,2]
[400853613,1767845443528,-558.19,0.00017671,2]
[400853615,1767845443537,-150.0,0.00017673,2]
[400853617,1767845443546,-150.0,0.00017674,2]
[400853619,1767845443555,-202.37576797,0.00017675,2]
[400853621,1767845443564,-300.0,0.00017675,2]
[400853623,1767845443574,-833.0,0.0001768,2]
[400853625,1767845443584,-300.0,0.00017685,2]
[400853627,1767845443593,-250.0,0.00017696,2]
[400853629,1767845443602,-150.0,0.00017704,2]
[400853631,1767845443611,-1000.0,0.0001771,2]
[400853633,1767845443621,-5888.0,0.00017721,2]
[400853635,1767845443630,-1000.0,0.00017723,2]
[400853637,1767845443639,-25000.0,0.00017724,3]
[400853641,1767845443650,-555.6,0.00017725,2]
[400853642,1767845443659,-25000.0,0.00017733,3]
[400853644,1767845443669,-25000.0,0.00017742,3]
[400853646,1767845443678,-4734.0,0.00017745,2]
[400853648,1767845443687,-300.0,0.00017748,2]
[400853650,1767845443696,-25000.0,0.0001775,3]
[400853653,1767845443706,-1000.0,0.00017757,2]
[400853655,1767845443717,-1000.0,0.00017758,2]
[400853657,1767845443728,-25000.0,0.00017759,3]
[400853658,1767845443737,-300.0,0.00017766,2]
[400853661,1767845443747,-1000.0,0.00017767,2]
[400853663,1767845443757,-25000.0,0.00017768,3]
[400853665,1767845443766,-1000.0,0.00017768,2]
[400853667,1767845443775,-152.34,0.00017769,2]
[400853669,1767845443785,-2745.755,0.00017769,2]
[400853671,1767845443794,-500.0,0.00017773,2]
[400853673,1767845443803,-661.33,0.00017775,2]
[400853675,1767845443813,-661.33,0.00017775,2]
[400853677,1767845443824,-25000.0,0.00017777,3]
[400853679,1767845443833,-1000.0,0.00017782,2]
[400853680,1767845443842,-1000.0,0.00017782,2]
[400853683,1767845443851,-25000.0,0.00017786,3]
[400853685,1767845443861,-150.0,0.00017791,2]
[400853686,1767845443870,-555.6,0.00017794,2]
[400853689,1767845443879,-25000.0,0.00017794,3]
[400853690,1767845443889,-150.0,0.00017796,2]
[400853692,1767845443899,-1000.0,0.000178,2]
[400853695,1767845443908,-25000.0,0.00017803,3]
[400853697,1767845443917,-1000.0,0.00017805,2]
[400853699,1767845443926,-300.0,0.00017808,2]
[400853701,1767845443935,-25000.0,0.00017812,3]
[400853703,1767845443944,-25000.0,0.00017821,3]
[400853704,1767845443953,-25000.0,0.0001783,3]
[400853707,1767845443963,-298.06900978,0.0001783,2]
[400853709,1767845443973,-300.0,0.00017833,2]
[400853711,1767845443982,-176.56971198,0.00017836,2]
[400853713,1767845443992,-150.0,0.00017836,2]
[400853715,1767845444001,-150.0,0.00017837,2]
[400853717,1767845444010,-25000.0,0.00017838,3]
[400853719,1767845444019,-186.7678,0.00017844,2]
[400853721,1767845444028,-25000.0,0.00017847,3]
[400853723,1767845444037,-25000.0,0.00017856,3]
[400853725,1767845444046,-200.0,0.00017856,2]
[400853727,1767845444056,-823.0,0.00017857,2]
[400853729,1767845444065,-823.0,0.00017857,2]
[400853731,1767845444075,-555.6,0.00017863,2]
[400853733,1767845444084,-25000.0,0.00017865,3]
[400853735,1767845444094,-330.0,0.00017871,2]
[400853737,1767845444104,-177.4888516,0.00017873,3]
[400853739,1767845444113,-25000.0,0.00017874,3]
[400853741,1767845444126,-163.7104368,0.00017884,2]
[400853743,1767845444138,-4734.0,0.00017889,2]
[400853745,1767845444147,-300.0,0.00017892,2]
[400853747,1767845444157,-300.0,0.00017894,2]
[400853749,1767845444166,-150.0,0.00017895,2]
[400853751,1767845444176,-1000.0,0.00017899,2]
[400853753,1767845444185,-33580.3823,0.000179,2]
[400853755,1767845444194,-1000.0,0.000179,2]
[400853757,1767845444203,-10000.0,0.000179,2]
[400853759,1767845444212,-2997.98680392,0.000179,2]
[400853761,1767845444223,-212.5660753,0.000179,2]
[400853763,1767845444232,-12866.0,0.000179,2]
[400853765,1767845444241,-212.37385639,0.00017903,2]
[400853767,1767845444250,-1000.0,0.00017904,2]
[400853769,1767845444259,-1000.0,0.00017905,2]
[400853771,1767845444269,-150.0,0.00017909,2]
[400853773,1767845444278,-150.0,0.00017911,2]
[400853775,1767845444287,-157.19112422,0.00017926,2]
[400853777,1767845444296,-300.0,0.00017927,2]
[400853779,1767845444306,-555.6,0.00017931,2]
[400853782,1767845444315,-300.0,0.00017942,2]
[400853784,1767845444324,-558.19,0.00017945,2]
[400853786,1767845444334,-300.0,0.0001796,2]
[400853788,1767845444343,-150.0,0.00017965,2]
[400853790,1767845444353,-300.0,0.00017966,2]
[400853792,1767845444362,-1000.0,0.0001797,2]
[400853794,1767845444371,-1000.0,0.0001797,2]
[400853796,1767845444381,-1000.0,0.0001797,2]
[400853798,1767845444391,-1000.0,0.0001797,2]
[400853800,1767845444400,-1000.0,0.0001797,2]
[400853802,1767845444410,-1246.54474908,0.0001797,2]
[400853804,1767845444420,-1000.0,0.0001797,2]
[400853806,1767845444429,-1000.0,0.0001797,2]
[400853808,1767845444442,-1000.0,0.0001797,2]
[400853810,1767845444452,-1000.0,0.0001797,2]
[400853813,1767845444462,-500.0,0.0001797,2]
[400853815,1767845444473,-500.0,0.0001797,2]
[400853817,1767845444482,-500.0,0.0001797,2]
[400853819,1767845444491,-500.0,0.0001797,2]
[400853821,1767845444501,-984.41347442,0.0001797,2]
[400853823,1767845444511,-156.0,0.00017973,2]
[400853825,1767845444521,-500.17178809,0.00017973,2]
[400853827,1767845444531,-500.0,0.00017973,2]
[400853829,1767845444540,-500.75581913,0.00017973,2]
[400853831,1767845444549,-633.01352033,0.00017973,2]
[400853833,1767845444559,-500.0,0.00017973,2]
[400853835,1767845444568,-338.62982115,0.00017973,2]